fUST/lending_fUST_20250928
["ID","MTS","AMOUNT","RATE_DAILY","PERIOD"]
[388085792,1759011048108,-151.0,0.00035616,7]
[388085793,1759011048117,-232.714852,0.00035616,7]
[388085794,1759011048126,-3773.4,0.00035616,9]
[388085795,1759011048135,-480.0,0.00035616,9]
[388085796,1759011048144,-151.0,0.00035616,7]
[388085797,1759011048153,-232.714852,0.00035616,7]
[388085798,1759011048163,-151.0,0.00035616,7]
[388085799,1759011048172,-232.714852,0.00035616,7]
[388085800,1759011048181,-232.714852,0.00035616,7]
[388085801,1759011048190,-151.0,0.00035616,7]
[388085802,1759011048200,-480.0,0.00035616,9]
[388085803,1759011048209,-158.97483,0.00035616,7]
[388085804,1759011048217,-232.714852,0.00035616,7]
[388085805,1759011048226,-900.33,0.00035616,9]
[388085806,1759011048235,-232.714852,0.00035616,7]
[388085807,1759011048244,-232.714852,0.00035616,7]
[388085808,1759011048253,-480.0,0.00035616,9]
[388085809,1759011048262,-232.714852,0.00035616,7]
[388085810,1759011048271,-232.714852,0.00035616,7]
[388085811,1759011048283,-286.9457137,0.00035616,9]
[388085812,1759011048299,-193.0542863,0.00035616,9]
[388085813,1759011048308,-232.714852,0.00035616,7]
[388085814,1759011048318,-232.714852,0.00035616,7]
[388085815,1759011048327,-232.714852,0.00035616,7]
[388085816,1759011048336,-584.36,0.00035616,9]
[388085817,1759011048345,-232.714852,0.00035616,7]
[388085818,1759011048357,-232.714852,0.00035616,7]
[388085819,1759011048366,-232.714852,0.00035616,7]
[388085820,1759011048375,-232.714852,0.00035616,7]
[388085821,1759011048383,-945.39,0.00035616,9]
[388085822,1759011048392,-480.0,0.00035616,9]
[388085823,1759011048402,-785.55,0.00035616,9]
[388085824,1759011048411,-525.52671538,0.00035616,9]
[388085825,1759011048420,-151.0,0.00035616,7]
[388085826,1759011048429,-1109.68,0.00035616,9]
[388085827,1759011048438,-151.0,0.00035616,7]
[388085828,1759011048446,-151.0,0.00035616,7]
[388085829,1759011048455,-151.0,0.00035616,7]
[388085830,1759011048464,-151.0,0.00035616,7]
[388085831,1759011048473,-151.0,0.00035616,7]
[388085832,1759011048481,-239.650288,0.00035616,7]
[388085833,1759011048490,-480.0,0.00035616,9]
[388085834,1759011048499,-480.0,0.00035616,9]
[388085835,1759011048508,-173.886584,0.00035616,7]
[388085836,1759011048517,-173.886584,0.00035616,7]
[388085837,1759011048526,-173.886584,0.00035616,7]
[388085838,1759011048535,-134.14220259,0.00035616,7]
[388085839,1759011048551,-39.74438141,0.00035616,7]
[388085840,1759011048560,-173.886584,0.00035616,7]
[388085841,1759011048569,-173.886584,0.00035616,7]
[388085842,1759011048579,-173.886584,0.00035616,7]
[388085843,1759011048588,-173.886584,0.00035616,7]
[388085844,1759011048597,-151.0,0.00035616,7]
[388085845,1759011048605,-151.0,0.00035616,7]
[388085846,1759011048614,-1046.24,0.00035616,9]
[388085847,1759011048624,-173.886584,0.00035616,7]
[388085848,1759011048633,-151.0,0.00035616,7]
[388085849,1759011048642,-173.886584,0.00035616,7]
[388085850,1759011048652,-532.07,0.00035616,9]
[388085851,1759011048661,-129.16636365,0.00035616,7]
[388085852,1759011048719,-21.83363635,0.00035616,7]
[388085853,1759011048728,-173.886584,0.00035616,7]
[388085854,1759011048737,-480.0,0.00035616,9]
[388085855,1759011048746,-173.886584,0.00035616,7]
[388085856,1759011048754,-29.25319565,0.00035616,9]
[388085857,1759011048767,-545.86680435,0.00035616,9]
[388085858,1759011048776,-151.0,0.00035616,7]
[388085859,1759011048785,-151.0,0.00035616,7]
[388085860,1759011048794,-173.886584,0.00035616,7]
[388085861,1759011048802,-173.886584,0.00035616,7]
[388085862,1759011048811,-151.0,0.00035616,7]
[388085863,1759011048820,-173.886584,0.00035616,7]
[388085864,1759011048829,-480.0,0.00035616,9]
[388085865,1759011048838,-151.0,0.00035616,7]
[388085866,1759011048848,-173.886584,0.00035616,7]
[388085867,1759011048857,-151.0,0.00035616,7]
[388085868,1759011048866,-151.0,0.00035616,7]
[388085869,1759011048876,-46.52477427,0.00035616,7]
[388085870,1759011048888,-104.47522573,0.00035616,7]
[388085871,1759011048897,-480.0,0.00035616,9]
[388085872,1759011048907,-151.0,0.00035616,7]
[388085873,1759011048917,-483.23,0.00035616,9]
[388085874,1759011048926,-796.82,0.00035616,9]
[388085875,1759011048935,-288.203756,0.00035616,7]
[388085876,1759011048944,-1191.09,0.00035616,9]
[388085877,1759011048953,-109.23817133,0.00035616,7]
[388085878,1759011048974,-41.76182867,0.00035616,7]
[388085879,1759011048983,-151.0,0.00035616,7]
[388085880,1759011048992,-151.0,0.00035616,7]
[388085881,1759011049001,-75.5191136,0.00035616,7]
[388085882,1759011049012,-75.4808864,0.00035616,7]
[388085883,1759011049022,-152.175508,0.00035616,7]
[388085884,1759011049031,-539.69,0.00035616,9]
[388085885,1759011049040,-480.0,0.00035616,9]
[388085886,1759011049050,-480.0,0.00035616,9]
[388085887,1759011049059,-480.0,0.00035616,9]
[388085888,1759011049069,-480.0,0.00035616,9]
[388085889,1759011049078,-480.0,0.00035616,9]
[388085890,1759011049087,-151.0,0.00035616,7]
[388085891,1759011049097,-151.0,0.00035616,7]
[388085892,1759011049109,-151.0,0.00035616,7]
[388085893,1759011049118,-151.0,0.00035616,7]
[388085894,1759011049127,-480.0,0.00035616,9]
[388085895,1759011049137,-151.0,0.00035616,7]
[388085896,1759011049146,-319.33307005,0.00035616,9]
[388085897,1759011049157,-151.0,0.00035616,7]
[388085898,1759011049166,-480.0,0.00035616,9]
[388085899,1759011049176,-554.83335775,0.00035616,9]
[388085900,1759011049188,-451.75664225,0.00035616,9]
[388085901,1759011049198,-86.90828889,0.00035616,9]
[388085902,1759011049209,-751.25171111,0.00035616,9]
[388085903,1759011049362,-151.0,0.00035616,7]
[388085904,1759011049373,-223.900066,0.00035616,7]
[388085905,1759011049382,-480.0,0.00035616,9]
[388085906,1759011049391,-871.9,0.00035616,9]
[388085907,1759011049401,-508.84,0.00035616,9]
[388085908,1759011049411,-2569.4229457,0.00035616,9]
[388085909,1759011049422,-358.5770543,0.00035616,9]
[388085910,1759011049432,-571.08638377,0.00035616,9]
[388085911,1759011049443,-9.59339367,0.00035616,9]
[388085912,1759011049452,-480.0,0.00035616,9]
[388085913,1759011049462,-597.37,0.00035616,9]
[388085914,1759011049472,-796.67,0.00035616,9]
[388085915,1759011049482,-731.89,0.00035616,9]
[388085916,1759011049491,-480.0,0.00035616,9]
[388085917,1759011049501,-219.298612,0.00035616,7]
[388085918,1759011049510,-219.298612,0.00035616,7]
[388085919,1759011049519,-219.298612,0.00035616,7]
[388085920,1759011049529,-219.298612,0.00035616,7]
[388085921,1759011049538,-480.0,0.00035616,9]
[388085922,1759011049548,-219.298612,0.00035616,7]
[388085923,1759011049559,-219.298612,0.00035616,7]
[388085924,1759011049568,-627.4705246,0.00035616,9]
[388085925,1759011049578,-219.298612,0.00035616,7]
[388085926,1759011049587,-219.298612,0.00035616,7]
[388085927,1759011049597,-219.298612,0.00035616,7]
[388085928,1759011049606,-219.298612,0.00035616,7]
[388085929,1759011049615,-934.44,0.00035616,9]
[388085930,1759011049625,-219.298612,0.00035616,7]
[388085931,1759011049636,-219.298612,0.00035616,7]
[388085932,1759011049645,-3073.34,0.00035616,9]
[388085933,1759011049656,-480.0,0.00035616,9]
[388085934,1759011049666,-219.298612,0.00035616,7]
[388085935,1759011049676,-219.298612,0.00035616,7]
[388085936,1759011049686,-219.298612,0.00035616,7]
[388085937,1759011049699,-332.11444338,0.00035616,9]
[388085938,1759011049744,-147.88555662,0.00035616,9]
[388085939,1759011049753,-219.298612,0.00035616,7]
[388085940,1759011049763,-480.0,0.00035616,9]
[388085941,1759011049772,-480.0,0.00035616,9]
[388085942,1759011049781,-480.0,0.00035616,9]
[388085943,1759011049791,-769.15,0.00035616,9]
[388085944,1759011049801,-584.01,0.00035616,9]
[388085945,1759011049810,-9604.42,0.00035616,9]
[388085946,1759011049820,-151.0,0.00035616,7]
[388085947,1759011049829,-484.36595145,0.00035616,9]
[388085948,1759011049839,-480.0,0.00035616,9]
[388085949,1759011049848,-151.0,0.00035616,7]
[388085950,1759011049857,-152.716367,0.00035616,7]
[388085951,1759011049867,-480.0,0.00035616,9]
[388085952,1759011049877,-937.92,0.00035616,9]
[388085953,1759011049886,-480.0,0.00035616,9]
[388085954,1759011049895,-151.0,0.00035616,7]
[388085955,1759011049905,-2048.79,0.00035616,9]
[388085956,1759011049914,-480.0,0.00035616,9]
[388085957,1759011049923,-151.0,0.00035616,7]
[388085958,1759011049932,-500.0,0.00035616,9]
[388085959,1759011049942,-566.47,0.00035616,9]
[388085960,1759011049951,-480.0,0.00035616,9]
[388085961,1759011049961,-480.0,0.00035616,9]
[388085962,1759011049970,-480.0,0.00035616,9]
[388085963,1759011049979,-480.0,0.00035616,9]
[388085964,1759011049989,-480.0,0.00035616,9]
[388085965,1759011049997,-480.0,0.00035616,9]
[388085966,1759011050006,-485.44494755,0.00035616,9]
[388085967,1759011050015,-480.0,0.00035616,9]
[388085968,1759011050024,-625.97010585,0.00035616,9]
[388085969,1759011050033,-480.0,0.00035616,9]
[388085970,1759011050042,-151.0,0.00035616,7]
[388085971,1759011050051,-151.0,0.00035616,7]
[388085972,1759011050060,-151.0,0.00035616,7]
[388085973,1759011050069,-151.0,0.00035616,7]
[388085974,1759011050078,-570.63,0.00035616,9]
[388085975,1759011050087,-1469.36,0.00035616,9]
[388085976,1759011050096,-609.36421997,0.00035616,9]
[388085977,1759011050105,-480.0,0.00035616,9]
[388085978,1759011050115,-480.0,0.00035616,9]
[388085979,1759011050124,-480.0,0.00035616,9]
[388085980,1759011050133,-480.0,0.00035616,9]
[388085981,1759011050142,-480.0,0.00035616,9]
[388085982,1759011050151,-480.0,0.00035616,9]
[388085983,1759011050159,-480.0,0.00035616,9]
[388085984,1759011050168,-480.0,0.00035616,9]
[388085985,1759011050177,-500.0,0.00035616,90]
[388085986,1759011050187,-718.83,0.00035616,9]
[388085987,1759011050196,-480.0,0.00035616,9]
[388085988,1759011050206,-784.64,0.00035616,9]
[388085989,1759011050215,-480.0,0.00035616,9]
[388085990,1759011050226,-151.0,0.00035616,7]
[388085991,1759011050235,-661.23,0.00035616,9]
[388085992,1759011050244,-151.0,0.00035616,7]
[388085993,1759011050254,-374.794403,0.00035616,7]
[388085994,1759011050263,-623.24,0.00035616,9]
[388085995,1759011050276,-374.794403,0.00035616,7]
[388085996,1759011050286,-480.0,0.00035616,9]
[388085997,1759011050295,-374.794403,0.00035616,7]
[388085998,1759011050305,-374.794403,0.00035616,7]
[388085999,1759011050314,-1222.04,0.00035616,9]
[388086000,1759011050325,-374.794403,0.00035616,7]
[388086001,1759011050335,-374.794403,0.00035616,7]
[388086002,1759011050347,-374.794403,0.00035616,7]
[388086003,1759011050360,-374.794403,0.00035616,7]
[388086004,1759011050370,-374.794403,0.00035616,7]
[388086005,1759011050380,-1288.47,0.00035616,9]
[388086006,1759011050389,-374.794403,0.00035616,7]
[388086007,1759011050399,-374.794403,0.00035616,7]
[388086008,1759011050408,-374.794403,0.00035616,7]
[388086009,1759011050417,-374.794403,0.00035616,7]
[388086010,1759011050427,-500.0,0.00035616,9]
[388086011,1759011050436,-374.794403,0.00035616,7]
[388086012,1759011050445,-374.794403,0.00035616,7]
[388086013,1759011050455,-374.794403,0.00035616,7]
[388086014,1759011050465,-480.0,0.00035616,9]
[388086015,1759011050474,-480.0,0.00035616,9]
[388086016,1759011050484,-480.0,0.00035616,9]
[388086017,1759011050494,-480.0,0.00035616,9]
[388086018,1759011050503,-1090.14,0.00035616,9]
[388086019,1759011050513,-480.0,0.00035616,9]
[388086020,1759011050522,-480.0,0.00035616,7]
[388086021,1759011050531,-480.0,0.00035616,9]
[388086022,1759011050540,-2892.01,0.00035616,9]
[388086023,1759011050550,-500.0,0.00035616,9]
[388086024,1759011050562,-500.0,0.00035616,9]
[388086025,1759011050571,-500.0,0.00035616,9]
[388086026,1759011050580,-500.0,0.00035616,9]
[388086027,1759011050590,-580.3649288,0.00035616,9]
[388086028,1759011050599,-151.0,0.00035616,7]
[388086029,1759011050609,-480.0,0.00035616,9]
[388086030,1759011050620,-151.0,0.00035616,7]
[388086031,1759011050630,-151.0,0.00035616,7]
[388086032,1759011050639,-999.0,0.00035616,120]
[388086033,1759011050647,-480.0,0.00035616,9]
[388086034,1759011050658,-151.0,0.00035616,7]
[388086035,1759011050667,-151.0,0.00035616,7]
[388086036,1759011050676,-151.0,0.00035616,7]
[388086037,1759011050686,-151.0,0.00035616,7]
[388086038,1759011050695,-480.0,0.00035616,9]
[388086039,1759011050704,-151.0,0.00035616,7]
[388086040,1759011050714,-151.0,0.00035616,7]
[388086041,1759011050723,-151.0,0.00035616,7]
[388086042,1759011050733,-151.0,0.00035616,7]
[388086043,1759011050742,-151.0,0.00035616,7]
[388086044,1759011050752,-151.0,0.00035616,7]
[388086045,1759011050761,-1467.9,0.00035616,9]
[388086046,1759011050772,-151.0,0.00035616,7]
[388086047,1759011050782,-151.0,0.00035616,7]
[388086048,1759011050792,-480.0,0.00035616,9]
[388086049,1759011050801,-151.0,0.00035616,7]
[388086050,1759011050811,-151.0,0.00035616,7]
[388086051,1759011050820,-151.0,0.00035616,7]
[388086052,1759011050829,-1117.55,0.00035616,9]
[388086053,1759011050838,-151.0,0.00035616,7]
[388086054,1759011050848,-480.0,0.00035616,9]
[388086055,1759011050858,-151.0,0.00035616,7]
[388086056,1759011050867,-151.0,0.00035616,7]
[388086057,1759011050876,-151.0,0.00035616,7]
[388086058,1759011050885,-151.0,0.00035616,7]
[388086059,1759011050895,-151.0,0.00035616,7]
[388086060,1759011050904,-151.0,0.00035616,7]
[388086061,1759011050913,-480.0,0.00035616,9]
[388086062,1759011050923,-151.0,0.00035616,7]
[388086063,1759011050932,-389.58591709,0.00035616,9]
[388086064,1759011050941,-151.0,0.00035616,7]
[388086065,1759011050950,-170.446767,0.00035616,7]
[388086066,1759011050960,-480.0,0.00035616,9]
[388086067,1759011050970,-480.0,0.00035616,9]
[388086068,1759011050980,-480.0,0.00035616,9]
[388086069,1759011050989,-151.0,0.00035616,7]
[388086070,1759011050999,-151.0,0.00035616,7]
[388086071,1759011051008,-151.0,0.00035616,7]
[388086072,1759011051018,-1554.98,0.00035616,9]
[388086073,1759011051027,-151.0,0.00035616,7]
[388086074,1759011051036,-151.0,0.00035616,7]
[388086075,1759011051047,-151.0,0.00035616,7]
[388086076,1759011051056,-151.0,0.00035616,7]
[388086077,1759011051066,-151.0,0.00035616,7]
[388086078,1759011051075,-480.0,0.00035616,9]
[388086079,1759011051084,-480.0,0.00035616,9]
[388086080,1759011051094,-151.0,0.00035616,7]
[388086081,1759011051103,-480.0,0.00035616,9]
[388086082,1759011051112,-151.0,0.00035616,7]
[388086083,1759011051122,-151.0,0.00035616,7]
[388086084,1759011051131,-939.31,0.00035616,9]
[388086085,1759011051140,-151.0,0.00035616,7]
[388086086,1759011051150,-480.0,0.00035616,9]
[388086087,1759011051159,-480.0,0.00035616,9]
[388086088,1759011051169,-738.38,0.00035616,9]
[388086089,1759011051179,-480.0,0.00035616,9]
[388086090,1759011051188,-480.0,0.00035616,9]
[388086091,1759011051199,-263.16972,0.00035616,7]
[388086092,1759011051209,-480.0,0.00035616,9]
[388086093,1759011051219,-263.16972,0.00035616,7]
[388086094,1759011051228,-480.0,0.00035616,9]
[388086095,1759011051238,-263.16972,0.00035616,7]
[388086096,1759011051247,-263.16972,0.00035616,7]
[388086097,1759011051257,-480.0,0.00035616,9]
[388086098,1759011051266,-263.16972,0.00035616,7]
[388086099,1759011051276,-263.16972,0.00035616,7]
[388086100,1759011051288,-480.0,0.00035616,9]
[388086101,1759011051299,-263.16972,0.00035616,7]
[388086102,1759011051310,-480.0,0.00035616,9]
[388086103,1759011051319,-263.16972,0.00035616,7]
[388086104,1759011051328,-263.16972,0.00035616,7]
[388086105,1759011051338,-263.16972,0.00035616,7]
[388086106,1759011051348,-263.16972,0.00035616,7]
[388086107,1759011051357,-263.16972,0.00035616,7]
[388086108,1759011051367,-10011.29,0.00035616,9]
[388086109,1759011051376,-263.16972,0.00035616,7]
[388086110,1759011051386,-263.16972,0.00035616,7]
[388086111,1759011051395,-151.0,0.00035616,7]
[388086112,1759011051404,-263.16972,0.00035616,7]
[388086113,1759011051414,-151.0,0.00035616,7]
[388086114,1759011051423,-263.16972,0.00035616,7]
[388086115,1759011051433,-151.0,0.00035616,7]
[388086116,1759011051442,-1640.31,0.00035616,9]
[388086117,1759011051452,-151.0,0.00035616,7]
[388086118,1759011051461,-480.0,0.00035616,9]
[388086119,1759011051471,-231.35485786,0.00035616,9]
[388086122,1759011331725,1163.45,0.00025205,2]
[388086126,1759011602655,160.0,0.00025205,2]
[388086127,1759011620825,160.0,0.00025205,2]
[388086139,1759012048090,-1000.0,0.00032876,15]
[388086140,1759012048114,-337.0,0.00033124,7]
[388086141,1759012048138,-34.54692991,0.00033147,7]
[388086145,1759012064621,417.15472785,0.00025205,2]
[388086149,1759012122389,8099.40527215,0.00019063,7]
[388086150,1759012122412,10000.01,0.00019063,7]
[388086151,1759012122434,10000.01,0.00019063,7]
[388086152,1759012122457,7305.49066207,0.00019063,7]
[388086156,1759012157103,-280.25064476,0.00029,3]
[388086157,1759012165075,-513.84,0.0003,120]
[388086158,1759012165096,-150.0,0.00030682,7]
[388086183,1759012232047,-258.22366975,0.00033147,7]
[388086185,1759012232058,-20.22940034,0.00033147,7]
[388086187,1759012232067,-201.300108,0.00033343,60]
[388086189,1759012232076,-84.71415888,0.00033352,2]
[388086197,1759012232144,-228.28584112,0.00033352,2]
[388086199,1759012232153,-313.0,0.00033371,7]
[388086201,1759012232162,-150.75685395,0.0003341,117]
[388086203,1759012232171,-325.36246652,0.00033411,2]
[388086206,1759012232181,-293.81290711,0.00033443,120]
[388086208,1759012232194,-19.18709289,0.00033443,120]
[388086210,1759012232203,-400.0,0.0003351,2]
[388086212,1759012232212,-1600.0,0.0003351,3]
[388086215,1759012232221,-517.87350549,0.00033511,7]
[388086218,1759012232230,-500.0,0.00033511,7]
[388086221,1759012232239,-500.0,0.00033511,7]
[388086224,1759012232248,-500.0,0.00033511,7]
[388086227,1759012232256,-500.0,0.00033511,7]
[388086230,1759012232265,-500.0,0.00033511,7]
[388086233,1759012232274,-500.0,0.00033511,7]
[388086236,1759012232283,-500.0,0.00033511,7]
[388086238,1759012232292,-235.59874982,0.00033511,7]
[388086240,1759012232300,-500.0,0.00033511,7]
[388086242,1759012232309,-500.0,0.00033511,7]
[388086244,1759012232318,-500.0,0.00033511,7]
[388086246,1759012232326,-181.03495343,0.00033511,7]
[388086248,1759012232335,-8706.00522013,0.00033511,7]
[388086250,1759012232346,-1222.71284545,0.00033511,7]
[388086252,1759012232357,-1154.3,0.00033511,7]
[388086255,1759012232368,-1282.14290677,0.00033511,7]
[388086277,1759012238078,-30345.89585902,0.00033511,7]
[388086278,1759012238089,-8400.83576183,0.00033511,2]
[388086279,1759012238098,-15470.47433776,0.00033511,2]
[388086280,1759012238107,-189.3309625,0.00033512,7]
[388086281,1759012238116,-313.0,0.00033603,2]
[388086282,1759012238125,-313.0,0.00033987,2]
[388086283,1759012238135,-337.0,0.00034191,2]
[388086284,1759012238144,-325.36246648,0.0003426,2]
[388086285,1759012238153,-162.3399399,0.00034286,30]
[388086286,1759012238162,-291.4016223,0.00034286,30]
[388086287,1759012238172,-189.1492399,0.00034286,30]
[388086288,1759012238181,-586.5092015,0.00034286,30]
[388086289,1759012238190,-189.1492399,0.00034286,30]
[388086290,1759012238199,-586.5092015,0.00034286,30]
[388086291,1759012238208,-162.3399399,0.00034286,30]
[388086292,1759012238217,-189.1492399,0.00034286,30]
[388086293,1759012238227,-574.01765831,0.00034286,30]
[388086294,1759012238239,-12.49154319,0.00034286,30]
[388086295,1759012238248,-189.1492399,0.00034286,30]
[388086296,1759012238257,-364.1877358,0.00034286,30]
[388086297,1759012238266,-220.72604964,0.00034547,2]
[388086298,1759012238275,-77.45375377,0.00034658,2]
[388086299,1759012238285,-259.54624623,0.00034658,2]
[388086300,1759012238294,-313.0,0.00034724,7]
[388086301,1759012238303,-337.0,0.00034775,2]
[388086302,1759012238312,-296.9209673,0.00034778,30]
[388086303,1759012238322,-586.5092015,0.00034778,30]
[388086305,1759012238331,-189.1492399,0.00034778,30]
[388086306,1759012238341,-162.3399399,0.00034778,30]
[388086308,1759012238350,-233.76631357,0.00034786,2]
[388086309,1759012238359,-313.0,0.00034846,7]
[388086310,1759012238368,-189.3309625,0.00034846,7]
[388086311,1759012238378,-1000.0,0.00035,30]
[388086312,1759012238387,-274.68712905,0.00035,30]
[388086313,1759012238411,-725.31287095,0.00035,30]
[388086314,1759012238420,-1000.0,0.00035,30]
[388086315,1759012238430,-1000.0,0.00035,30]
[388086316,1759012238440,-168.0,0.0003506,2]
[388086317,1759012238449,-453.49635044,0.00035067,2]
[388086318,1759012238459,-189.1492399,0.00035108,30]
[388086319,1759012238469,-325.36246648,0.00035108,2]
[388086320,1759012238478,-306.6717649,0.00035123,2]
[388086370,1759012240110,-6.3282351,0.00035123,2]
[388086372,1759012240119,-390.611828,0.00035231,30]
[388086374,1759012240128,-135.48889225,0.00035231,30]
[388086561,1759012246517,-192.84430554,0.0003351,7]
[388086563,1759012246526,-409.00388372,0.0003351,7]
[388086564,1759012246535,-255.12293575,0.00035231,30]
[388086565,1759012246545,-390.611828,0.00035231,30]
[388086567,1759012246554,-390.611828,0.00035231,30]
[388086569,1759012246563,-189.3309625,0.00035231,30]
[388086571,1759012246573,-785.74233885,0.00035233,2]
[388086573,1759012246581,-390.611828,0.00035254,30]
[388086575,1759012246590,-189.3309625,0.00035272,2]
[388086577,1759012246599,-19418.4307072,0.00035296,2]
[388086579,1759012246608,-294.72,0.00035296,3]
[388086581,1759012246617,-245.6,0.00035296,3]
[388086583,1759012246626,-736.81,0.00035296,3]
[388086585,1759012246635,-149077.11310109,0.00035306,2]
[388086654,1759012436459,-374.22447,0.00032877,2]
[388086655,1759012436487,-400.0,0.00033508,2]
[388086656,1759012436515,-500.0,0.00033509,7]
[388086657,1759012436543,-228.95435953,0.00033509,7]
[388086658,1759012436571,-500.0,0.00033509,7]
[388086659,1759012436600,-500.0,0.00033509,7]
[388086660,1759012436627,-500.0,0.00033509,7]
[388086661,1759012436655,-500.0,0.00033509,7]
[388086662,1759012436683,-500.0,0.00033509,7]
[388086663,1759012436712,-500.0,0.00033509,7]
[388086664,1759012436740,-493.65234094,0.00033509,7]
[388086665,1759012436938,-6.34765906,0.00033509,7]
[388086666,1759012436967,-500.0,0.00033509,7]
[388086667,1759012436996,-500.0,0.00033509,7]
[388086668,1759012437025,-274.96754276,0.00033509,7]
[388086669,1759012437054,-500.0,0.00033509,7]
[388086670,1759012437084,-500.0,0.00033509,7]
[388086671,1759012437116,-500.0,0.00033509,7]
[388086672,1759012437145,-500.0,0.00033509,7]
[388086673,1759012437382,-523.48052183,0.00033509,7]
[388086674,1759012437412,-243.85937728,0.00033509,7]
[388086675,1759012437443,-500.0,0.00033509,7]
[388086676,1759012437474,-402.69979814,0.00033509,7]
[388086677,1759012437600,-97.30020186,0.00033509,7]
[388086678,1759012437630,-500.0,0.00033509,7]
[388086679,1759012437659,-786.0,0.00033509,3]
[388086680,1759012437690,-168.0,0.00035085,2]
[388086681,1759012437718,-233.76631357,0.00035086,2]
[388086682,1759012437745,-292.43163701,0.00035088,2]
[388086683,1759012437774,-1172.6346262,0.00035094,30]
[388086684,1759012437802,-593.8419346,0.00035094,30]
[388086685,1759012437832,-324.6798798,0.00035094,30]
[388086686,1759012437861,-203.35154155,0.00035233,2]
[388086687,1759012437916,-3385.8581376,0.00035262,2]
[388086688,1759012437945,-390.611828,0.00035286,30]
[388086689,1759012437974,-390.611828,0.00035286,30]
[388086690,1759012438003,-390.611828,0.00035286,30]
[388086691,1759012438153,-4590.59001728,0.00035296,2]
[388086692,1759012438294,-818.82996544,0.00035296,2]
[388086693,1759012438325,-217.42909604,0.00035305,7]
[388086694,1759012438357,-785.74233885,0.00035441,2]
[388086695,1759012438385,-151.0,0.00035495,30]
[388086696,1759012438412,-151.0,0.000355,17]
[388086697,1759012438439,-1803.13999424,0.00035506,3]
[388086698,1759012438488,-2301.99485976,0.00035516,2]
[388086699,1759012438516,-500.0,0.00035518,30]
[388086700,1759012438546,-313.0,0.00035519,2]
[388086701,1759012438575,-313.0,0.00035543,2]
[388086702,1759012438602,-328.0,0.00035566,14]
[388086703,1759012438631,-328.0,0.00035566,14]
[388086704,1759012438658,-328.0,0.00035566,14]
[388086705,1759012438687,-328.0,0.00035566,14]
[388086706,1759012438716,-192.02028048,0.00035566,14]
[388086707,1759012456414,-400.0,0.00035565,2]
[388086708,1759012456442,-135.97971952,0.00035566,14]
[388086709,1759012456468,-328.0,0.00035566,14]
[388086710,1759012456496,-328.0,0.00035566,14]
[388086711,1759012456522,-328.0,0.00035566,14]
[388086712,1759012456550,-328.0,0.00035566,14]
[388086713,1759012456577,-328.0,0.00035566,14]
[388086714,1759012456604,-328.0,0.00035566,14]
[388086715,1759012456632,-162.0,0.00035583,14]
[388086716,1759012456660,-172.0,0.00035583,14]
[388086717,1759012456687,-162.0,0.00035583,14]
[388086718,1759012456714,-162.0,0.00035583,14]
[388086719,1759012456740,-156.0,0.00035583,14]
[388086720,1759012456767,-156.0,0.00035583,14]
[388086721,1759012456794,-156.0,0.00035583,14]
[388086722,1759012456822,-156.0,0.00035583,14]
[388086723,1759012456849,-162.98096703,0.00035583,14]